[Event "Titled Tuesday Blitz June 20 Late 2023"]
[White "Sattarov, Bobir"]
[Black "Richter, Paul"]
[WhiteFideId "14203081"]
[BlackFideId "2046350"]
[WhiteElo "2351"]
[BlackElo "2546"]
[Result "1-0"]
[Round "4"]
[TimeControl "180+2"]
[Date "2023.06.20"]
[WhiteClock "0:01:28"]
[BlackClock "0:00:01"]
[Board "29"]

1. e4 {[%clk 0:03:00]}  c5 {[%clk 0:02:58]} 2. Nf3 {[%clk 0:03:00]}  d6 {[%clk 0:02:59]} 3. d4 {[%clk 0:03:00]}  cxd4 {[%clk 0:03:00]} 4. Nxd4 {[%clk 0:03:01]}  Nf6 {[%clk 0:03:00]} 5. f3 {[%clk 0:03:01]}  e5 {[%clk 0:03:00]} 6. Nb3 {[%clk 0:03:01]}  d5 {[%clk 0:02:47]} 7. Bg5 {[%clk 0:03:02]}  Be6 {[%clk 0:02:39]} 8. Bxf6 {[%clk 0:03:02]}  gxf6 {[%clk 0:02:39]} 9. exd5 {[%clk 0:03:02]}  Qxd5 {[%clk 0:02:36]} 10. Qxd5 {[%clk 0:03:03]}  Bxd5 {[%clk 0:02:37]} 11. Nc3 {[%clk 0:03:03]}  Bc6 {[%clk 0:02:35]} 12. O-O-O {[%clk 0:02:57]}  Bh6+ {[%clk 0:02:08]} 13. Kb1 {[%clk 0:02:55]}  O-O {[%clk 0:02:09]} 14. Na5 {[%clk 0:02:54]}  Kg7 {[%clk 0:01:47]} 15. Bd3 {[%clk 0:02:49]}  b6 {[%clk 0:01:33]} 16. Nxc6 {[%clk 0:02:47]}  Nxc6 {[%clk 0:01:34]} 17. Be4 {[%clk 0:02:35]}  Rac8 {[%clk 0:01:32]} 18. Nb5 {[%clk 0:02:35]}  Nd4 {[%clk 0:01:18]} 19. Nxd4 {[%clk 0:02:27]}  exd4 {[%clk 0:01:19]} 20. Rxd4 {[%clk 0:02:27]}  Rfd8 {[%clk 0:01:15]} 21. Rhd1 {[%clk 0:02:27]}  Rxd4 {[%clk 0:01:15]} 22. Rxd4 {[%clk 0:02:27]}  Rc7 {[%clk 0:01:12]} 23. c3 {[%clk 0:02:23]}  Re7 {[%clk 0:01:03]} 24. a4 {[%clk 0:02:21]}  Rc7 {[%clk 0:00:54]} 25. Bd3 {[%clk 0:02:20]}  Re7 {[%clk 0:00:45]} 26. Ka2 {[%clk 0:02:18]}  Bc1 {[%clk 0:00:37]} 27. Kb3 {[%clk 0:02:15]}  h5 {[%clk 0:00:31]} 28. Rd5 {[%clk 0:02:10]}  Kh6 {[%clk 0:00:29]} 29. Kc2 {[%clk 0:02:09]}  Bf4 {[%clk 0:00:26]} 30. g3 {[%clk 0:02:09]}  Be3 {[%clk 0:00:22]} 31. h4 {[%clk 0:01:54]}  Bf2 {[%clk 0:00:21]} 32. g4 {[%clk 0:01:54]}  hxg4 {[%clk 0:00:19]} 33. fxg4 {[%clk 0:01:55]}  Re5 {[%clk 0:00:18]} 34. Rd7 {[%clk 0:01:49]}  a5 {[%clk 0:00:17]} 35. g5+ {[%clk 0:01:40]}  fxg5 {[%clk 0:00:15]} 36. Rxf7 {[%clk 0:01:40]}  gxh4 {[%clk 0:00:04]} 37. Rxf2 {[%clk 0:01:40]}  Kg5 {[%clk 0:00:05]} 38. Re2 {[%clk 0:01:38]}  Rc5 {[%clk 0:00:04]} 39. Re6 {[%clk 0:01:34]}  h3 {[%clk 0:00:01]} 40. Rxb6 {[%clk 0:01:31]}  h2 {[%clk 0:00:01]} 41. Be4 {[%clk 0:01:31]}  Re5 {[%clk 0:00:02]} 42. Rb5 {[%clk 0:01:31]}  Kf4 {[%clk 0:00:02]} 43. Rxe5 {[%clk 0:01:28]}  Kxe5 {[%clk 0:00:01]} 44. Bh1 {[%clk 0:01:28]} 1-0


[Site "https://www.chess.com"]

[Event "Titled Tuesday Blitz June 20 Late 2023"]
[White "Sadhwani, Raunak"]
[Black "Schnaider, Ilan"]
[WhiteFideId "35093487"]
[BlackFideId "169013"]
[WhiteElo "2631"]
[BlackElo "2224"]
[Result "0-1"]
[Round "4"]
[TimeControl "180+2"]
[Date "2023.06.20"]
[WhiteClock "0:00:00"]
[BlackClock "0:00:03"]
[Board "34"]

1. Nc3 {[%clk 0:03:00]}  Nf6 {[%clk 0:02:58]} 2. Nf3 {[%clk 0:03:00]}  d5 {[%clk 0:02:53]} 3. d4 {[%clk 0:03:00]}  g6 {[%clk 0:02:50]} 4. Bf4 {[%clk 0:03:00]}  a6 {[%clk 0:02:47]} 5. e3 {[%clk 0:02:58]}  Bg7 {[%clk 0:02:47]} 6. Ne5 {[%clk 0:02:58]}  O-O {[%clk 0:02:47]} 7. h4 {[%clk 0:02:58]}  Nc6 {[%clk 0:02:39]} 8. Nxc6 {[%clk 0:02:56]}  bxc6 {[%clk 0:02:39]} 9. Be5 {[%clk 0:02:56]}  Rb8 {[%clk 0:02:32]} 10. b3 {[%clk 0:02:55]}  Bf5 {[%clk 0:02:26]} 11. h5 {[%clk 0:02:51]}  gxh5 {[%clk 0:02:20]} 12. Be2 {[%clk 0:02:43]}  Bg6 {[%clk 0:02:16]} 13. Bf3 {[%clk 0:02:41]}  Qd7 {[%clk 0:02:08]} 14. Ne2 {[%clk 0:02:41]}  Qf5 {[%clk 0:02:02]} 15. Rc1 {[%clk 0:02:39]}  Ne4 {[%clk 0:01:53]} 16. Bxg7 {[%clk 0:02:38]}  Kxg7 {[%clk 0:01:53]} 17. Nf4 {[%clk 0:02:39]}  Nc3 {[%clk 0:01:49]} 18. Qd2 {[%clk 0:02:30]}  Nxa2 {[%clk 0:01:48]} 19. Nxh5+ {[%clk 0:02:24]}  Kh8 {[%clk 0:01:32]} 20. Ng3 {[%clk 0:02:14]}  Qg5 {[%clk 0:01:27]} 21. Ra1 {[%clk 0:02:05]}  Nb4 {[%clk 0:01:27]} 22. Bd1 {[%clk 0:01:59]}  e5 {[%clk 0:01:20]} 23. Ra4 {[%clk 0:01:55]}  c5 {[%clk 0:01:08]} 24. dxc5 {[%clk 0:01:56]}  Nc6 {[%clk 0:01:03]} 25. Rah4 {[%clk 0:01:56]}  d4 {[%clk 0:00:55]} 26. e4 {[%clk 0:01:41]}  Qxd2+ {[%clk 0:00:46]} 27. Kxd2 {[%clk 0:01:42]}  Kg7 {[%clk 0:00:34]} 28. Be2 {[%clk 0:01:36]}  a5 {[%clk 0:00:30]} 29. Nh5+ {[%clk 0:01:27]}  Bxh5 {[%clk 0:00:19]} 30. Rxh5 {[%clk 0:01:28]}  Rh8 {[%clk 0:00:19]} 31. Bc4 {[%clk 0:01:28]}  f6 {[%clk 0:00:17]} 32. R1h3 {[%clk 0:01:24]}  Ne7 {[%clk 0:00:17]} 33. f4 {[%clk 0:01:02]}  exf4 {[%clk 0:00:13]} 34. Rh1 {[%clk 0:00:53]}  Ng6 {[%clk 0:00:13]} 35. Rd5 {[%clk 0:00:53]}  Ne5 {[%clk 0:00:11]} 36. Bd3 {[%clk 0:00:44]}  Rhd8 {[%clk 0:00:07]} 37. Ra1 {[%clk 0:00:44]}  c6 {[%clk 0:00:05]} 38. Rxd8 {[%clk 0:00:40]}  Rxd8 {[%clk 0:00:06]} 39. Rxa5 {[%clk 0:00:41]}  h5 {[%clk 0:00:07]} 40. Ra1 {[%clk 0:00:37]}  Kg6 {[%clk 0:00:06]} 41. Be2 {[%clk 0:00:33]}  Kg5 {[%clk 0:00:06]} 42. b4 {[%clk 0:00:34]}  Rb8 {[%clk 0:00:06]} 43. Rb1 {[%clk 0:00:25]}  Ng6 {[%clk 0:00:03]} 44. b5 {[%clk 0:00:16]}  cxb5 {[%clk 0:00:03]} 45. Rxb5 {[%clk 0:00:15]}  Rxb5 {[%clk 0:00:02]} 46. Bxb5 {[%clk 0:00:15]}  h4 {[%clk 0:00:02]} 47. c6 {[%clk 0:00:15]}  f3 {[%clk 0:00:02]} 48. gxf3 {[%clk 0:00:15]}  h3 {[%clk 0:00:03]} 49. c7 {[%clk 0:00:14]}  Ne7 {[%clk 0:00:03]} 50. Bf1 {[%clk 0:00:14]}  h2 {[%clk 0:00:03]} 51. Bg2 {[%clk 0:00:15]}  Kf4 {[%clk 0:00:04]} 52. Bh1 {[%clk 0:00:15]}  Kg3 {[%clk 0:00:04]} 53. Ke2 {[%clk 0:00:15]}  Nc8 {[%clk 0:00:03]} 54. Ke1 {[%clk 0:00:04]}  Ne7 {[%clk 0:00:04]} 55. Kf1 {[%clk 0:00:04]}  Nc8 {[%clk 0:00:04]} 56. Ke2 {[%clk 0:00:04]}  Ne7 {[%clk 0:00:04]} 57. f4 {[%clk 0:00:04]}  Kxf4 {[%clk 0:00:04]} 58. Kd3 {[%clk 0:00:05]}  Ke5 {[%clk 0:00:04]} 59. Kc4 {[%clk 0:00:05]}  Nc8 {[%clk 0:00:02]} 60. Kc5 {[%clk 0:00:05]}  Ke6 {[%clk 0:00:02]} 61. Kc6 {[%clk 0:00:06]}  Ke7 {[%clk 0:00:02]} 62. Bg2 {[%clk 0:00:05]}  Nd6 {[%clk 0:00:01]} 63. Bf3 {[%clk 0:00:04]}  Nc8 {[%clk 0:00:01]} 64. Kb7 {[%clk 0:00:03]}  Nd6+ {[%clk 0:00:02]} 65. Kb8 {[%clk 0:00:03]}  Kd7 {[%clk 0:00:03]} 66. Bg2 {[%clk 0:00:04]}  Nc8 {[%clk 0:00:01]} 67. Bh3+ {[%clk 0:00:04]}  Kc6 {[%clk 0:00:02]} 68. Bxc8 {[%clk 0:00:01]}  h1=Q {[%clk 0:00:02]} 69. Bb7+ {[%clk 0:00:02]}  Kb6 {[%clk 0:00:02]} 70. c8=Q {[%clk 0:00:03]}  Qh2+ {[%clk 0:00:03]} 71. Ka8 {[%clk 0:00:00]}  Qd6 {[%clk 0:00:03]} 0-1


[Site "https://www.chess.com"]

[Event "Titled Tuesday Blitz June 20 Late 2023"]
[White "Andreikin, Dmitry"]
[Black "Vlassov, Nikolai"]
[WhiteFideId "4158814"]
[BlackFideId "4103360"]
[WhiteElo "2736"]
[BlackElo "2324"]
[Result "1-0"]
[Round "4"]
[TimeControl "180+2"]
[Date "2023.06.20"]
[WhiteClock "0:01:27"]
[BlackClock "0:00:32"]
[Board "35"]

1. e4 {[%clk 0:03:00]}  Nc6 {[%clk 0:02:59]} 2. Na3 {[%clk 0:02:59]}  Nf6 {[%clk 0:02:42]} 3. d3 {[%clk 0:02:59]}  d5 {[%clk 0:02:39]} 4. exd5 {[%clk 0:03:00]}  Qxd5 {[%clk 0:02:38]} 5. Nf3 {[%clk 0:02:56]}  Bg4 {[%clk 0:02:37]} 6. Be2 {[%clk 0:02:56]}  e5 {[%clk 0:02:35]} 7. O-O {[%clk 0:02:54]}  O-O-O {[%clk 0:02:23]} 8. c4 {[%clk 0:02:47]}  Qd7 {[%clk 0:02:12]} 9. Be3 {[%clk 0:02:40]}  Bxf3 {[%clk 0:02:01]} 10. Bxf3 {[%clk 0:02:40]}  Qxd3 {[%clk 0:02:01]} 11. Qa4 {[%clk 0:02:39]}  Nd4 {[%clk 0:01:25]} 12. Bxd4 {[%clk 0:01:56]}  Rxd4 {[%clk 0:01:20]} 13. Rad1 {[%clk 0:01:45]}  Qf5 {[%clk 0:01:11]} 14. Qxa7 {[%clk 0:01:43]}  Bxa3 {[%clk 0:00:55]} 15. bxa3 {[%clk 0:01:33]}  Rhd8 {[%clk 0:00:44]} 16. Bxb7+ {[%clk 0:01:26]}  Kd7 {[%clk 0:00:44]} 17. Rxd4+ {[%clk 0:01:27]}  exd4 {[%clk 0:00:44]} 18. Qxd4+ {[%clk 0:01:28]}  Ke7 {[%clk 0:00:44]} 19. Re1+ {[%clk 0:01:28]}  Qe6 {[%clk 0:00:38]} 20. Rxe6+ {[%clk 0:01:27]}  fxe6 {[%clk 0:00:32]} 21. Qc5+ {[%clk 0:01:27]} 1-0


[Site "https://www.chess.com"]

[Event "Titled Tuesday Blitz June 20 Late 2023"]
[White "Zhigalko, Sergei"]
[Black "Moral Garcia, Serafin"]
[WhiteFideId "13502956"]
[BlackFideId "2201925"]
[WhiteElo "2626"]
[BlackElo "2274"]
[Result "1-0"]
[Round "4"]
[TimeControl "180+2"]
[Date "2023.06.20"]
[WhiteClock "0:01:39"]
[BlackClock "0:00:26"]
[Board "36"]

1. e4 {[%clk 0:03:00]}  e5 {[%clk 0:02:55]} 2. Nf3 {[%clk 0:03:01]}  Nf6 {[%clk 0:02:55]} 3. Nxe5 {[%clk 0:03:00]}  d6 {[%clk 0:02:54]} 4. Nf3 {[%clk 0:03:00]}  Nxe4 {[%clk 0:02:55]} 5. Nc3 {[%clk 0:03:01]}  Nxc3 {[%clk 0:02:56]} 6. dxc3 {[%clk 0:03:02]}  Be7 {[%clk 0:02:56]} 7. Be3 {[%clk 0:03:02]}  O-O {[%clk 0:02:57]} 8. Qd2 {[%clk 0:03:03]}  Nd7 {[%clk 0:02:57]} 9. O-O-O {[%clk 0:03:04]}  Re8 {[%clk 0:02:48]} 10. Bd3 {[%clk 0:02:59]}  Nf6 {[%clk 0:02:38]} 11. Kb1 {[%clk 0:02:55]}  d5 {[%clk 0:02:36]} 12. Rhe1 {[%clk 0:02:52]}  c6 {[%clk 0:02:32]} 13. h3 {[%clk 0:02:46]}  Bd6 {[%clk 0:02:28]} 14. Bg5 {[%clk 0:02:40]}  Be6 {[%clk 0:02:03]} 15. Nd4 {[%clk 0:02:39]}  h6 {[%clk 0:01:55]} 16. Bh4 {[%clk 0:02:39]}  c5 {[%clk 0:01:32]} 17. Nxe6 {[%clk 0:02:04]}  Rxe6 {[%clk 0:01:29]} 18. Rxe6 {[%clk 0:02:04]}  fxe6 {[%clk 0:01:29]} 19. Re1 {[%clk 0:02:05]}  Qd7 {[%clk 0:00:27]} 20. Bxf6 {[%clk 0:01:58]}  gxf6 {[%clk 0:00:28]} 21. Qxh6 {[%clk 0:01:59]}  Rf8 {[%clk 0:00:26]} 22. Rxe6 {[%clk 0:01:39]} 1-0


[Site "https://www.chess.com"]

[Event "Titled Tuesday Blitz June 20 Late 2023"]
[White "Ingebretsen, Jens E"]
[Black "Indjic, Aleksandar"]
[WhiteFideId "1522965"]
[BlackFideId "911925"]
[WhiteElo "2213"]
[BlackElo "2614"]
[Result "1-0"]
[Round "4"]
[TimeControl "180+2"]
[Date "2023.06.20"]
[WhiteClock "0:00:06"]
[BlackClock "0:00:00"]
[Board "37"]

1. e4 {[%clk 0:03:00]}  c5 {[%clk 0:02:59]} 2. Ne2 {[%clk 0:03:01]}  d6 {[%clk 0:02:59]} 3. g3 {[%clk 0:03:01]}  g6 {[%clk 0:02:57]} 4. Bg2 {[%clk 0:03:01]}  Bg7 {[%clk 0:02:57]} 5. O-O {[%clk 0:03:02]}  Nc6 {[%clk 0:02:57]} 6. c3 {[%clk 0:03:02]}  e5 {[%clk 0:02:56]} 7. Na3 {[%clk 0:02:59]}  Nge7 {[%clk 0:02:51]} 8. Nc4 {[%clk 0:02:59]}  Be6 {[%clk 0:02:45]} 9. d3 {[%clk 0:02:59]}  d5 {[%clk 0:02:37]} 10. exd5 {[%clk 0:02:57]}  Bxd5 {[%clk 0:02:37]} 11. Be3 {[%clk 0:02:51]}  Bxg2 {[%clk 0:02:32]} 12. Kxg2 {[%clk 0:02:51]}  b5 {[%clk 0:02:32]} 13. Na3 {[%clk 0:02:47]}  a6 {[%clk 0:02:30]} 14. Kg1 {[%clk 0:02:38]}  Qd6 {[%clk 0:02:27]} 15. Nc1 {[%clk 0:02:03]}  Nd5 {[%clk 0:02:24]} 16. Bd2 {[%clk 0:01:58]}  O-O {[%clk 0:02:22]} 17. Nb3 {[%clk 0:01:55]}  Nc7 {[%clk 0:02:08]} 18. Be3 {[%clk 0:01:51]}  Ne6 {[%clk 0:02:08]} 19. Qe2 {[%clk 0:01:30]}  Rfe8 {[%clk 0:02:06]} 20. Rfd1 {[%clk 0:01:23]}  Ned4 {[%clk 0:02:03]} 21. cxd4 {[%clk 0:01:18]}  exd4 {[%clk 0:01:51]} 22. Bf4 {[%clk 0:01:19]}  Qd5 {[%clk 0:01:50]} 23. Qf1 {[%clk 0:01:16]}  g5 {[%clk 0:01:39]} 24. Bd2 {[%clk 0:01:13]}  Ne5 {[%clk 0:01:39]} 25. Qg2 {[%clk 0:01:05]}  Nf3+ {[%clk 0:01:38]} 26. Kh1 {[%clk 0:01:06]}  g4 {[%clk 0:01:37]} 27. Bf4 {[%clk 0:00:55]}  Re2 {[%clk 0:01:31]} 28. Rac1 {[%clk 0:00:55]}  Rae8 {[%clk 0:01:27]} 29. Rf1 {[%clk 0:00:32]}  Bf8 {[%clk 0:01:02]} 30. Nb1 {[%clk 0:00:13]}  a5 {[%clk 0:00:38]} 31. N3d2 {[%clk 0:00:13]}  R8e6 {[%clk 0:00:28]} 32. Nxf3 {[%clk 0:00:14]}  gxf3 {[%clk 0:00:28]} 33. Qh3 {[%clk 0:00:14]}  Rxb2 {[%clk 0:00:22]} 34. Nd2 {[%clk 0:00:14]}  Rxa2 {[%clk 0:00:19]} 35. Ne4 {[%clk 0:00:15]}  Rg6 {[%clk 0:00:19]} 36. Nxc5 {[%clk 0:00:10]}  f5 {[%clk 0:00:14]} 37. Nb7 {[%clk 0:00:05]}  Re2 {[%clk 0:00:12]} 38. Nxa5 {[%clk 0:00:04]}  Qe6 {[%clk 0:00:11]} 39. Nc6 {[%clk 0:00:04]}  Qd5 {[%clk 0:00:11]} 40. Ne5 {[%clk 0:00:04]}  Rxe5 {[%clk 0:00:11]} 41. Bxe5 {[%clk 0:00:05]}  Qxe5 {[%clk 0:00:12]} 42. Rce1 {[%clk 0:00:05]}  Qc5 {[%clk 0:00:10]} 43. Re8 {[%clk 0:00:05]}  Kf7 {[%clk 0:00:11]} 44. Qxh7+ {[%clk 0:00:05]}  Bg7 {[%clk 0:00:11]} 45. Qg8+ {[%clk 0:00:05]}  Kf6 {[%clk 0:00:12]} 46. Qe6+ {[%clk 0:00:05]}  Kg5 {[%clk 0:00:13]} 47. Qe7+ {[%clk 0:00:05]}  Bf6 {[%clk 0:00:10]} 48. h4+ {[%clk 0:00:05]}  Kg4 {[%clk 0:00:10]} 49. Qxc5 {[%clk 0:00:06]}  Kh3 {[%clk 0:00:10]} 50. Qd5 {[%clk 0:00:06]}  Rg4 {[%clk 0:00:00]} 51. Qxf3 {[%clk 0:00:06]} 1-0


[Site "https://www.chess.com"]

[Event "Titled Tuesday Blitz June 20 Late 2023"]
[White "Mendez Fortes, Eduardo Jesus"]
[Black "Corrales Jimenez, Fidel"]
[WhiteFideId "3502376"]
[BlackFideId "3506690"]
[WhiteElo "2307"]
[BlackElo "2511"]
[Result "0-1"]
[Round "4"]
[TimeControl "180+2"]
[Date "2023.06.20"]
[WhiteClock "0:00:46"]
[BlackClock "0:01:36"]
[Board "40"]

1. e4 {[%clk 0:02:56]}  c6 {[%clk 0:02:58]} 2. d4 {[%clk 0:02:54]}  d5 {[%clk 0:02:59]} 3. e5 {[%clk 0:02:54]}  Bf5 {[%clk 0:02:58]} 4. Nf3 {[%clk 0:02:54]}  e6 {[%clk 0:02:58]} 5. Be2 {[%clk 0:02:55]}  h6 {[%clk 0:02:57]} 6. Nbd2 {[%clk 0:02:53]}  Nd7 {[%clk 0:02:57]} 7. O-O {[%clk 0:02:52]}  Ne7 {[%clk 0:02:57]} 8. Nb3 {[%clk 0:02:52]}  a6 {[%clk 0:02:57]} 9. a4 {[%clk 0:02:52]}  Rc8 {[%clk 0:02:56]} 10. a5 {[%clk 0:02:47]}  g5 {[%clk 0:02:52]} 11. Re1 {[%clk 0:02:43]}  Bg7 {[%clk 0:02:52]} 12. Nfd2 {[%clk 0:02:38]}  c5 {[%clk 0:02:49]} 13. dxc5 {[%clk 0:02:11]}  Nxc5 {[%clk 0:02:42]} 14. Nxc5 {[%clk 0:02:09]}  Rxc5 {[%clk 0:02:43]} 15. c3 {[%clk 0:02:09]}  Rxa5 {[%clk 0:02:40]} 16. Rxa5 {[%clk 0:02:08]}  Qxa5 {[%clk 0:02:41]} 17. Bf1 {[%clk 0:02:06]}  Nc6 {[%clk 0:02:36]} 18. Nf3 {[%clk 0:02:05]}  Be4 {[%clk 0:02:35]} 19. Nd4 {[%clk 0:01:56]}  Nxe5 {[%clk 0:02:31]} 20. b4 {[%clk 0:01:45]}  Qc7 {[%clk 0:02:30]} 21. f3 {[%clk 0:01:32]}  Bg6 {[%clk 0:02:27]} 22. f4 {[%clk 0:01:31]}  gxf4 {[%clk 0:01:49]} 23. Bxf4 {[%clk 0:01:27]}  Be4 {[%clk 0:01:49]} 24. Re3 {[%clk 0:01:13]}  Qb6 {[%clk 0:01:42]} 25. Qh5 {[%clk 0:01:07]}  Ng6 {[%clk 0:01:40]} 26. Kh1 {[%clk 0:00:46]}  Nxf4 {[%clk 0:01:36]} 0-1


[Site "https://www.chess.com"]

[Event "Titled Tuesday Blitz June 20 Late 2023"]
[White "O`Gorman, Tom"]
[Black "Simonian, Hrair"]
[WhiteFideId "2508249"]
[BlackFideId "13302337"]
[WhiteElo "2299"]
[BlackElo "2447"]
[Result "0-1"]
[Round "4"]
[TimeControl "180+2"]
[Date "2023.06.20"]
[WhiteClock "0:00:11"]
[BlackClock "0:00:09"]
[Board "44"]

1. e4 {[%clk 0:03:00]}  c5 {[%clk 0:02:59]} 2. Nf3 {[%clk 0:03:00]}  d6 {[%clk 0:02:59]} 3. c3 {[%clk 0:03:00]}  Nf6 {[%clk 0:03:00]} 4. Be2 {[%clk 0:03:00]}  g6 {[%clk 0:02:59]} 5. O-O {[%clk 0:02:59]}  Bg7 {[%clk 0:03:00]} 6. Bb5+ {[%clk 0:03:00]}  Nc6 {[%clk 0:03:00]} 7. d4 {[%clk 0:02:59]}  Qb6 {[%clk 0:03:00]} 8. Na3 {[%clk 0:02:36]}  O-O {[%clk 0:02:57]} 9. Re1 {[%clk 0:02:36]}  cxd4 {[%clk 0:02:46]} 10. Nxd4 {[%clk 0:02:30]}  Bd7 {[%clk 0:02:40]} 11. Bf1 {[%clk 0:02:25]}  Rac8 {[%clk 0:02:13]} 12. Nc4 {[%clk 0:02:09]}  Qd8 {[%clk 0:02:12]} 13. f3 {[%clk 0:02:07]}  a6 {[%clk 0:02:06]} 14. Be3 {[%clk 0:01:57]}  b5 {[%clk 0:02:04]} 15. Nd2 {[%clk 0:01:54]}  Nxd4 {[%clk 0:01:34]} 16. cxd4 {[%clk 0:01:51]}  Qc7 {[%clk 0:01:20]} 17. Rc1 {[%clk 0:01:47]}  Qb7 {[%clk 0:01:19]} 18. Nb3 {[%clk 0:01:43]}  Be6 {[%clk 0:01:14]} 19. Na5 {[%clk 0:01:39]}  Qa8 {[%clk 0:01:05]} 20. d5 {[%clk 0:01:24]}  Bd7 {[%clk 0:01:04]} 21. Qd2 {[%clk 0:01:21]}  Nh5 {[%clk 0:00:52]} 22. Bd4 {[%clk 0:01:19]}  Nf6 {[%clk 0:00:49]} 23. Rxc8 {[%clk 0:01:04]}  Rxc8 {[%clk 0:00:48]} 24. h3 {[%clk 0:00:51]}  e5 {[%clk 0:00:43]} 25. Be3 {[%clk 0:00:48]}  Ne8 {[%clk 0:00:42]} 26. Rc1 {[%clk 0:00:47]}  f5 {[%clk 0:00:42]} 27. Rxc8 {[%clk 0:00:45]}  Qxc8 {[%clk 0:00:43]} 28. Qc1 {[%clk 0:00:43]}  Qd8 {[%clk 0:00:32]} 29. Nc6 {[%clk 0:00:42]}  Qh4 {[%clk 0:00:32]} 30. Bf2 {[%clk 0:00:35]}  Qf6 {[%clk 0:00:32]} 31. a4 {[%clk 0:00:31]}  bxa4 {[%clk 0:00:31]} 32. Bxa6 {[%clk 0:00:30]}  fxe4 {[%clk 0:00:31]} 33. fxe4 {[%clk 0:00:29]}  Qf7 {[%clk 0:00:23]} 34. Bb5 {[%clk 0:00:26]}  Nf6 {[%clk 0:00:23]} 35. Qe3 {[%clk 0:00:21]}  Nh5 {[%clk 0:00:23]} 36. Bxa4 {[%clk 0:00:20]}  Nf4 {[%clk 0:00:20]} 37. b4 {[%clk 0:00:20]}  Qe8 {[%clk 0:00:19]} 38. b5 {[%clk 0:00:19]}  Qa8 {[%clk 0:00:20]} 39. Qb3 {[%clk 0:00:18]}  Ne2+ {[%clk 0:00:11]} 40. Kf1 {[%clk 0:00:17]}  Nd4 {[%clk 0:00:08]} 41. Bxd4 {[%clk 0:00:17]}  exd4 {[%clk 0:00:08]} 42. b6 {[%clk 0:00:17]}  Qa6+ {[%clk 0:00:08]} 43. Bb5 {[%clk 0:00:17]}  Qa1+ {[%clk 0:00:08]} 44. Kf2 {[%clk 0:00:16]}  Bc8 {[%clk 0:00:06]} 45. Ne7+ {[%clk 0:00:15]}  Kf7 {[%clk 0:00:05]} 46. Nxc8 {[%clk 0:00:16]}  d3 {[%clk 0:00:06]} 47. Qxd3 {[%clk 0:00:15]}  Bd4+ {[%clk 0:00:06]} 48. Kg3 {[%clk 0:00:16]}  Be5+ {[%clk 0:00:07]} 49. Kf2 {[%clk 0:00:15]}  Bd4+ {[%clk 0:00:07]} 50. Ke2 {[%clk 0:00:15]}  Qb2+ {[%clk 0:00:07]} 51. Qd2 {[%clk 0:00:14]}  Qxb5+ {[%clk 0:00:06]} 52. Kf3 {[%clk 0:00:13]}  Qf1+ {[%clk 0:00:05]} 53. Kg4 {[%clk 0:00:12]}  h5+ {[%clk 0:00:05]} 54. Kg5 {[%clk 0:00:12]}  Qf6+ {[%clk 0:00:05]} 55. Kh6 {[%clk 0:00:12]}  Qh8+ {[%clk 0:00:05]} 56. Kg5 {[%clk 0:00:12]}  Qe5+ {[%clk 0:00:06]} 57. Kh6 {[%clk 0:00:12]}  Qg7+ {[%clk 0:00:06]} 58. Kg5 {[%clk 0:00:13]}  Bf6+ {[%clk 0:00:06]} 59. Kf4 {[%clk 0:00:12]}  Qh6+ {[%clk 0:00:07]} 60. Kf3 {[%clk 0:00:12]}  Qxd2 {[%clk 0:00:08]} 61. Nxd6+ {[%clk 0:00:13]}  Ke7 {[%clk 0:00:07]} 62. b7 {[%clk 0:00:14]}  Qd3+ {[%clk 0:00:07]} 63. Kf2 {[%clk 0:00:14]}  Qb1 {[%clk 0:00:07]} 64. Nc4 {[%clk 0:00:12]}  Bd4+ {[%clk 0:00:08]} 65. Kf3 {[%clk 0:00:12]}  Qxb7 {[%clk 0:00:09]} 66. e5 {[%clk 0:00:11]}  Qb3+ {[%clk 0:00:09]} 0-1


[Site "https://www.chess.com"]

[Event "Titled Tuesday Blitz June 20 Late 2023"]
[White "Lorparizangeneh, Shahin"]
[Black "Shapiro, Viktor"]
[WhiteFideId "12521604"]
[BlackFideId "4175700"]
[WhiteElo "2526"]
[BlackElo "2212"]
[Result "1-0"]
[Round "4"]
[TimeControl "180+2"]
[Date "2023.06.20"]
[WhiteClock "0:01:13"]
[BlackClock "0:00:00"]
[Board "45"]

1. Nf3 {[%clk 0:03:00]}  Nf6 {[%clk 0:03:00]} 2. g3 {[%clk 0:02:59]}  g6 {[%clk 0:02:59]} 3. Bg2 {[%clk 0:03:00]}  Bg7 {[%clk 0:03:00]} 4. O-O {[%clk 0:03:01]}  O-O {[%clk 0:03:00]} 5. d4 {[%clk 0:03:01]}  d6 {[%clk 0:03:00]} 6. Nc3 {[%clk 0:03:01]}  Nbd7 {[%clk 0:02:58]} 7. e4 {[%clk 0:03:02]}  e5 {[%clk 0:02:56]} 8. h3 {[%clk 0:03:02]}  exd4 {[%clk 0:02:53]} 9. Nxd4 {[%clk 0:03:02]}  Re8 {[%clk 0:02:54]} 10. Re1 {[%clk 0:03:03]}  Nc5 {[%clk 0:02:53]} 11. Bf4 {[%clk 0:03:03]}  a5 {[%clk 0:02:50]} 12. Qd2 {[%clk 0:03:02]}  Bd7 {[%clk 0:02:48]} 13. Rad1 {[%clk 0:02:58]}  a4 {[%clk 0:02:41]} 14. a3 {[%clk 0:02:56]}  Ra6 {[%clk 0:02:40]} 15. Bg5 {[%clk 0:02:48]}  Rb6 {[%clk 0:02:25]} 16. Nd5 {[%clk 0:02:36]}  Rxb2 {[%clk 0:02:24]} 17. Qc1 {[%clk 0:02:36]}  Ra2 {[%clk 0:01:57]} 18. Nb4 {[%clk 0:02:30]}  Ne6 {[%clk 0:01:31]} 19. Nxa2 {[%clk 0:02:12]}  Nxg5 {[%clk 0:01:10]} 20. Qxg5 {[%clk 0:02:12]}  Qa8 {[%clk 0:00:56]} 21. Nc3 {[%clk 0:02:07]}  h6 {[%clk 0:00:48]} 22. Qd2 {[%clk 0:02:06]}  Qa5 {[%clk 0:00:37]} 23. Nd5 {[%clk 0:02:01]}  Qc5 {[%clk 0:00:37]} 24. Nxf6+ {[%clk 0:01:51]}  Bxf6 {[%clk 0:00:37]} 25. Qe3 {[%clk 0:01:44]}  h5 {[%clk 0:00:14]} 26. Nf3 {[%clk 0:01:42]}  Qa5 {[%clk 0:00:11]} 27. Qf4 {[%clk 0:01:33]}  Kg7 {[%clk 0:00:10]} 28. e5 {[%clk 0:01:17]}  dxe5 {[%clk 0:00:10]} 29. Qb4 {[%clk 0:01:18]}  Qxb4 {[%clk 0:00:08]} 30. axb4 {[%clk 0:01:19]}  Bc6 {[%clk 0:00:07]} 31. Nd2 {[%clk 0:01:19]}  Bxg2 {[%clk 0:00:02]} 32. Kxg2 {[%clk 0:01:20]}  b5 {[%clk 0:00:02]} 33. Ne4 {[%clk 0:01:14]}  Be7 {[%clk 0:00:02]} 34. c3 {[%clk 0:01:14]}  Ra8 {[%clk 0:00:00]} 35. Rd7 {[%clk 0:01:13]} 1-0


[Site "https://www.chess.com"]

[Event "Titled Tuesday Blitz June 20 Late 2023"]
[White "Avila Pavas, Santiago"]
[Black "Manukyan, Artyom"]
[WhiteFideId "4437128"]
[BlackFideId "13305786"]
[WhiteElo "2449"]
[BlackElo "2078"]
[Result "1-0"]
[Round "4"]
[TimeControl "180+2"]
[Date "2023.06.20"]
[WhiteClock "0:01:38"]
[BlackClock "0:01:34"]
[Board "46"]

1. d4 {[%clk 0:03:00]}  d5 {[%clk 0:02:49]} 2. Nf3 {[%clk 0:03:00]}  Nf6 {[%clk 0:02:48]} 3. Bg5 {[%clk 0:03:01]}  Ne4 {[%clk 0:02:48]} 4. Bh4 {[%clk 0:03:01]}  Qd6 {[%clk 0:02:49]} 5. Nc3 {[%clk 0:02:47]}  Qh6 {[%clk 0:02:46]} 6. Nxd5 {[%clk 0:02:45]}  Na6 {[%clk 0:02:41]} 7. e3 {[%clk 0:02:38]}  Bg4 {[%clk 0:02:38]} 8. Bxa6 {[%clk 0:02:36]}  O-O-O {[%clk 0:02:32]} 9. Bc4 {[%clk 0:02:18]}  Be6 {[%clk 0:02:17]} 10. Qd3 {[%clk 0:02:08]}  f5 {[%clk 0:02:13]} 11. Nf4 {[%clk 0:01:58]}  Bxc4 {[%clk 0:02:05]} 12. Qxc4 {[%clk 0:01:59]}  g5 {[%clk 0:02:06]} 13. Ne6 {[%clk 0:01:59]}  Rd7 {[%clk 0:02:00]} 14. Bxg5 {[%clk 0:01:58]}  Qg6 {[%clk 0:01:34]} 15. Ne5 {[%clk 0:01:38]} 1-0


[Site "https://www.chess.com"]